Workbook

Sheet Start
D10: =IF(D9="","",VLOOKUP(D9,'Wettbewerb Budget'!D2:AJ50,Start!F8,FALSE)) -> 

Sheet Annahmerichtlinien (hidden)
B2: Quick-Check Annahmerichtlinien
B4: Tarif | D4: Mitarbeitende AG-Finanzierung | G4: Familienangehörige | J4: Mitarbeitende AN-Finanzierung
J5: Hinweis: Mitarbeitende, für die ein AG-finanzierter Tarif abgeschlossen wurde, können ihren Versicherungsschutz nur mit Tarifen aus anderen Leistungsbereichen gegen eigene Beitragszahlung erweitern (zulässiges Beispiel: MediGroupAG Z Premium und MediGroup ZB; unzulässiges Beispiel: MediGroupAG Z Premium und MediGroup Z Duo).
D6: MA-Zahl | E6: Bedingung | F6: Anmeldung | G6: Auswahl | H6: Bedingung | I6: Anmeldung | J6: MA-Zahl | K6: Bedingung | M6: Anmeldung
B7: Stationär | E7: =IF(AND(S7=TRUE,D7>=20),"ohne Gesundheitsprüfung, mit Berufsprüfung, laufende und angeratene Behandlungen mitversichert",IF(AND(S7=TRUE,D7<20,D7>=10),"ohne Gesundheitsprüfung, aber bestimmte schwere Vorerkrankungen ausgeschlossen, Berufsprüfung","nicht ausgewählt")) -> nicht ausgewählt | F7: =IF(AND(S7=TRUE,D7>=10),"Checkliste, dann Anmeldung der MA über Meldeliste von GVU","") ->  | H7: =IF(AND(S7=TRUE,D7<20,D7>=10,T7=TRUE),"mit Gesundheits- und Berufsprüfung",IF(AND(S7=TRUE,D7>=20,T7=TRUE),"ohne Gesundheitsprüfung innerhalb von 6 Monaten im gleichen Tarif, bestimmte schwere Vorerkrankungen ausgeschlossen, Berufsprüfung","")) ->  | I7: =IF(AND(S7=TRUE,T7=TRUE,D7<20,D7>1),"MediGroup Antrag",IF(AND(S7=TRUE,T7=TRUE,D7>=20),"speziellen Antrag mit sog. Merkblattregelung bei GVU anfordern","")) ->  | K7: =IF(AND(J7>=5,J7<50,S7=TRUE),"mit Gesundheits- und Berufsprüfung",IF(AND(J7>=50,S7=TRUE),"ohne Gesundheitsprüfung, sodass laufende und angeratene Behandlungen mitversichert sind, sofern nicht mehr als 20 AU-Tage in den letzten 12 Monaten, Berufsprüfung","nicht ausgewählt")) -> nicht ausgewählt | L7: =IF(AND(J7>=5,J7<20,S7=TRUE),"Risikozuschlag, Leistungsausschluss, Ablehnung möglich",IF(AND(J7>=20,J7<50,S7=TRUE),"Risikozuschlag, Leistungsausschluss möglich, keine Ablehnung",IF(AND(S7=TRUE,J7>=50),"keine Ablehnung",""))) ->  | M7: =IF(AND(S7=TRUE,J7>=5,J7<50),"MediGroup Antrag",IF(AND(S7=TRUE,J7>=50),"Antrag über GVU","")) ->  | S7: FALSE | T7: FALSE
E8: =IF(AND(S8=TRUE,D8>=20),"ohne Gesundheitsprüfung, mit Berufsprüfung",IF(AND(S8=TRUE,D8<20,D8>=5),"ohne Gesundheitsprüfung, laufende und angeratene Behandlungen nicht versichert, Berufsprüfung","nicht ausgewählt")) -> nicht ausgewählt | F8: =IF(AND(S8=TRUE,D8>=5),"Checkliste, dann Anmeldung der MA über Meldeliste von GVU","") ->  | H8: =IF(AND(S8=TRUE,D8<20,D8>=5,T8=TRUE),"ohne Gesundheitsprüfung, mit Berufsprüfung",IF(AND(S8=TRUE,D8>=20,T8=TRUE),"ohne Gesundheitsprüfung, mit Berufsprüfung","")) ->  | I8: =IF(AND(S8=TRUE,T8=TRUE,D8<20,D8>1),"MediGroupAntrag",IF(AND(S8=TRUE,T8=TRUE,D8>=20),"speziellen Antrag mit sog. Merkblattregelung bei GVU anfordern","")) ->  | K8: =IF(AND(J8>=5,J8<50,S8=TRUE),"ohne Gesundheitsprüfung, mit Berufsprüfung",IF(AND(J8>=50,S8=TRUE),"ohne Gesundheitsprüfung, mit Berufsprüfung","nicht ausgewählt")) -> nicht ausgewählt | L8: =IF(AND(J8>=5,J8<20,S8=TRUE),"Ablehnung möglich",IF(AND(J8>=20,J8<50,S8=TRUE),"keine Ablehnung",IF(AND(S8=TRUE,J8>=50),"keine Ablehnung",""))) ->  | M8: =IF(AND(S8=TRUE,J8>=5,J8<50),"MediGroup Antrag",IF(AND(S8=TRUE,J8>=50),"Antrag über GVU","")) ->  | S8: FALSE | T8: FALSE
B9: Zahn | E9: =IF(AND(S9=TRUE,D9>=20),"ohne Gesundheits- und Berufsprüfung (ausg. Zahnarztpraxen), laufende und angeratene Behandlungen mitversichert",IF(AND(S9=TRUE,D9<20,D9>=5),"ohne Gesundheitsprüfung, laufende und angeratene Behandlungen nicht versichert, keine Berufsprüfung (ausg. Zahnarztpraxen)","nicht ausgewählt")) -> nicht ausgewählt | F9: =IF(AND(S9=TRUE,D9>=5),"Checkliste, dann Anmeldung der MA über Meldeliste von GVU","") ->  | H9: =IF(AND(S9=TRUE,D9<20,D9>=5,T9=TRUE),"ohne Gesundheitsprüfung, laufende und angeratene Behandlungen sind mitversichert, keine Berufsprüfung (ausg. Zahnarztpraxen)",IF(AND(S9=TRUE,D9>=20,T9=TRUE),"ohne Gesundheitsprüfung, laufende und angeratene Behandlungen mitversichert, keine Berufsprüfung (ausg. Zahnarztpraxen)","")) ->  | I9: =IF(AND(S9=TRUE,T9=TRUE,D9<20,D9>1),"MediGroupAntrag",IF(AND(S9=TRUE,T9=TRUE,D9>=20),"speziellen Antrag mit Merkblattregelung bei GVU anfordern","")) ->  | K9: =IF(AND(J9>=5,J9<50,S9=TRUE),"ohne Gesundheitsprüfung, aber fehlende Zähne sowie laufende und angeratene Behandlungen nicht versichert, keine Berufsprüfung (ausg. Zahnarztpraxen)",IF(AND(J9>=50,S9=TRUE),"ohne Gesundheitsprüfung, sodass laufende und angeratene Behandlungen mitvrersichert sind, sofern nicht mehr als 20 AU-Tage in den letzten 12 Monaten, keine Berufsprüfung (ausg. Zahnarztpraxen)","nicht ausgewählt")) -> nicht ausgewählt | M9: =IF(AND(S9=TRUE,J9>=5,J9<50),"MediGroup Antrag",IF(AND(S9=TRUE,J9>=50),"Antrag über GVU","")) ->  | S9: FALSE | T9: FALSE
E10: =IF(AND(S10=TRUE,D10>=20),"ohne Gesundheits- und Berufsprüfung (ausg. Zahnarztpraxen), laufende und angeratene Behandlungen mitversichert",IF(AND(S10=TRUE,D10<20,D10>=5),"ohne Gesundheitsprüfung, fehlende Zähne sowie laufende und angeratene Behandlungen nicht versichert, keine Berufsprüfung (ausg. Zahnarztpraxen)","nicht ausgewählt")) -> nicht ausgewählt | F10: =IF(AND(S10=TRUE,D10>=5),"Checkliste, dann Anmeldung der MA über Meldeliste von GVU","") ->  | H10: =IF(AND(S10=TRUE,D10<20,D10>=5,T10=TRUE),"ohne Gesundheitsprüfung, fehlende Zähne sowie laufende und angeratene Behandlungen nicht versichert, keine Berufsprüfung (ausg. Zahnarztpraxen)",IF(AND(S10=TRUE,D10>=20,T10=TRUE),"ohne Gesundheitsprüfung innerhalb von 6 Monaten im gleichen Tarif, fehlende Zänne und laufende/angeratene Behandlungen mitversichert, keine Berufsprüfung (ausg. Zahnarztpraxen)","")) ->  | I10: =IF(AND(S10=TRUE,T10=TRUE,D10<20,D10>1),"MediGroupAntrag",IF(AND(S10=TRUE,T10=TRUE,D10>=20),"speziellen Antrag mit Merkblattregelung bei GVU anfordern","")) ->  | K10: =IF(AND(J10>=5,J10<50,S10=TRUE),"ohne Gesundheits- und Berufsprüfung (ausg. Zahnarztpraxen)",IF(AND(J10>=50,S10=TRUE),"ohne Gesundheitsprüfung, sodass fehlende Zähne sowie laufende und angeratene Behandlungen mitversichert sind, sofern nicht mehr als 20 AU-Tage in den letzten 12 Monaten, keine Berufsprüfung (ausg. Zahnarztpraxen)","nicht ausgewählt")) -> nicht ausgewählt | S10: FALSE | T10: FALSE
D11: Wird in der AG-Finanzierung nicht angeboten | H11: =IF(AND(S11=TRUE,T11=TRUE),"mit Gesundheitsprüfung","") ->  | I11: =IF(AND(S11=TRUE,T11=TRUE),"MediGroup Antrag","") ->  | K11: =IF(AND(J11>=5,J11<50,S11=TRUE),"mit Gesundheitsprüfung",IF(AND(J11>=50,S11=TRUE),"ohne Gesundheitsprüfung, sodass fehlende Zänne sowie laufende und angeratene Behandlungen mitversichert sind, sofern nicht mehr als 20 AU-Tage in den letzten 12 Monaten, keine Berufsprüfung (ausg. Zahnärzte)","nicht ausgewählt")) -> nicht ausgewählt | M11: =IF(AND(S11=TRUE,J11>=5,J11<50),"MediGroup Antrag",IF(AND(S11=TRUE,J11>=50),"Antrag über GVU","")) ->  | S11: FALSE | T11: FALSE
B12: Ambulant | E12: =IF(AND(S12=TRUE,D12>=20),"ohne Gesundheitsprüfung, mit Berufsprüfung, laufende und angeratene Behandlungen mitversichert",IF(AND(S12=TRUE,D12<20,D12>=10),"ohne Gesundheitsprüfung, aber bestimmte schwere Vorerkrankungen nicht versichert, Berufsprüfung","nicht ausgewählt")) -> nicht ausgewählt | F12: =IF(AND(S12=TRUE,D12>=10),"Checkliste, dann Anmeldung der MA über Meldeliste von GVU","") ->  | H12: =IF(AND(S12=TRUE,D12<20,D12>=10,T12=TRUE),"mit Gesundheits- und Berufsprüfung",IF(AND(S12=TRUE,D12>=20,T12=TRUE),"ohne Gesundheitsprüfung innerhalb von 6 Monaten im gleichen Tarif, bestimmte schwere Vorerkrankungen ausgeschlossen, Berufsprüfung","")) ->  | I12: =IF(AND(S12=TRUE,T12=TRUE,D12<20,D12>1),"MediGroupAntrag",IF(AND(S12=TRUE,T12=TRUE,D12>=20),"speziellen Antrag mit Merkblattregelung bei GVU anfordern","")) ->  | K12: =IF(AND(J12>=5,J12<50,S12=TRUE),"mit Gesundheitsprüfung",IF(AND(J12>=50,S12=TRUE),"ohne Gesundheitsprüfung, sodass laufende und angeratene Behandlungen mitversichert sind, sofern nicht mehr als 20 AU-Tage in den letzten 12 Monaten, Berufsprüfung","nicht ausgewählt")) -> nicht ausgewählt | S12: FALSE | T12: FALSE
E13: =IF(AND(D13>=5,S13=TRUE),"ohne Gesundheits- und Berufsprüfung","nicht ausgewählt") -> nicht ausgewählt | F13: =IF(AND(S13=TRUE,D13>=5),"Checkliste, dann Anmeldung der MA über Meldeliste von GVU","") ->  | H13: =IF(AND(S13=TRUE,D13>=5,T13=TRUE),"ohne Gesundheits- und Berufsprüfung","") ->  | I13: =IF(AND(S13=TRUE,T13=TRUE,D13>1),"MediGroupAntrag","") ->  | K13: =IF(J13>=1,"ohne Gesundheits- und Berufsprüfung","nicht ausgewählt") -> nicht ausgewählt | S13: FALSE | T13: FALSE
B14: Budget | D14: 5 | E14: =IF(AND(D14>=5,D14<10,S14=TRUE),"ohne Gesundheitsprüfung, laufende und angeratene Behandlungen mitversichert, Leistungserbringer wie bspw. Zahnarzt- und Arztpraxen zählen zu den nicht versicherbaren Berufen",IF(AND(D14>=10,S14=TRUE),"ohne Gesundheitsprüfung, laufende und angeratene Behandlungen mitversichert, Leistungserbringer wie bspw. Zahnarzt- und Arztpraxen zählen zu den nicht versicherbaren Berufen, 300 Budget nur ab 10 MA","nicht ausgewählt")) -> ohne Gesundheitsprüfung, laufende und angeratene Behandlungen mitversichert, Leistungserbringer wie bspw. Zahnarzt- und Arztpraxen zählen zu den nicht versicherbaren Berufen | F14: =IF(AND(S14=TRUE,D14>=5),"Checkliste, dann Anmeldung der MA über Meldeliste von GVU","") -> Checkliste, dann Anmeldung der MA über Meldeliste von GVU | H14: =IF(AND(S14=TRUE,D14<20,D14>=5,T14=TRUE),"mit Gesundheitsprüfung, laufende und angeratene Behandlungen nicht versichert, Tarifstufe frei wählbar, keine Berufsprüfung",IF(AND(S14=TRUE,D14>=20,T14=TRUE),"ohne Gesundheitsprüfung innerhalb von 6 Monaten in der gleichen/niedrigeren Budgetstufe, laufende und angeratene Behandlungen mitversichert, keine Berufsprüfung","")) ->  | I14: =IF(AND(S14=TRUE,T14=TRUE,D14<20,D14>1),"MediGroupAntrag",IF(AND(S14=TRUE,T14=TRUE,D14>=20),"speziellen Antrag mit Merkblattregelung bei GVU anfordern","")) ->  | K14: =IF(AND(J14>=5,J14<50,S14=TRUE),"mit Gesundheitsprüfung",IF(AND(J14>=50,S14=TRUE),"ohne Gesundheitsprüfung, sodass laufende und angeratene Behandlungne mitversichert sind, sofern nicht mehr als 20 AU-Tage in den letzten 12 Monaten, keine Berufsprüfung (ausg. Profitsport, Zahnarztpraxen)","nicht ausgewählt")) -> nicht ausgewählt | L14: =IF(AND(J14>=5,J14<20,S14=TRUE),"Risikozuschlag, Leistungsausschluss, Ablehnung möglich",IF(AND(J14>=20,J14<50,S14=TRUE),"Risikozuschlag, Leistungsausschluss möglich, keine Ablehnung",IF(AND(S14=TRUE,J14>=50),"keine Ablehnung",""))) ->  | S14: TRUE | T14: FALSE
B15: TG, PG und Ausland | E15: =IF(AND(D15>=10,D15<20,S15=TRUE),"mit Gesundheits- und Berufsprüfung, Erschwernis analog Einzelgeschäft, Ablehnung möglich",IF(AND(D15>=20,S15=TRUE),"KT bis max. 30€ ohne Gesundheitsprüfung, darüber hinaus mit Gesundheitsprüfung","nicht ausgewählt")) -> nicht ausgewählt | F15: =IF(AND(S15=TRUE,D15>=10,D15<20),"Gruppenantrag",IF(AND(S15=TRUE,D15>=20),"Checkliste, dann Anmeldung der MA über Meldeliste von GVU","")) ->  | H15: =IF(AND(D15>=20,S15=TRUE,T15=TRUE),"bis max. 30€ ohne Gesundheitsprüfung, bestimmte schwere Vorerkrankungen ausgeschlossen, darüber hinaus mit Gesundheitsprüfung",IF(AND(S15=TRUE,T15=TRUE,D15>=10,D15<20),"mit Gesundheitsprüfung, Risikozuschlag, Leistungsauschluss","")) ->  | I15: =IF(AND(D15>=20,S15=TRUE,T15=TRUE),"Antrag über GVU, bis 30€ mit Merkblattregelung",IF(AND(S15=TRUE,T15=TRUE,D15>=5,D15<20),"speziellen Antrag mit Merkblattregelung bei GVU anfordern","")) ->  | K15: =IF(AND(J15>=5,J15<50,S15=TRUE),"mit Gesundheitsprüfung",IF(AND(J15>=50,S15=TRUE),"ohne Gesundheitsprüfung, sofern nicht mehr als 20 AU-Tage in den letzten 12 Monaten","nicht ausgewählt")) -> nicht ausgewählt | L15: =IF(AND(J15>=5,J15<20,S15=TRUE),"Risikozuschlag, Leistungsausschluss, Ablehnung möglich",IF(AND(J15>=20,J15<50,S15=TRUE),"Risikozuschlag, Leistungsausschluss möglich, keine Ablehnung",IF(AND(S15=TRUE,J15>=50),"keine Ablehnung",""))) ->  | M15: =IF(AND(J15>=5,S15=TRUE),"Antrag über GVU","") ->  | S15: FALSE | T15: FALSE
E16: =IF(AND(D16>=20,S16=TRUE),"ohne Gesundheitsprüfung, mit Berufsprüfung","nicht ausgewählt") -> nicht ausgewählt | F16: =IF(AND(S16=TRUE,D16>=20),"Checkliste, dann Anmeldung der MA über Meldeliste von GVU","") ->  | H16: =IF(AND(S16=TRUE,T16=TRUE,D16>=20),"mit Gesundheits- und Berufsprüfung, Erschwerung analog Einzelgeschäft möglich; Kinder und Jugendliche nur im Rahmen der Kindernachversicherungs versicherbar","") ->  | I16: =IF(AND(S16=TRUE,T16=TRUE,D16>=5),"Ergänzungsantrag PG","") ->  | K16: =IF(AND(J16>=5,S16=TRUE),"mit Gesundheitsprüfung","nicht ausgewählt") -> nicht ausgewählt | L16: =IF(AND(J16>=5,J16,S16=TRUE),"Risikozuschlag, Leistungsausschluss, Ablehnung möglich","") ->  | M16: =IF(AND(J16>=5,S16=TRUE),"Ergänzungsantrag PG","") ->  | S16: FALSE | T16: FALSE
E17: =IF(AND(D17>=20,S16=TRUE),"ohne Gesundheitsprüfung","nicht ausgewählt") -> nicht ausgewählt | F17: =IF(AND(S17=TRUE,D17>=20),"Checkliste, dann Anmeldung der MA über Meldeliste von GVU","") ->  | H17: =IF(AND(S17=TRUE,T17=TRUE,D17>=20),"ohne Gesundheitsprüfung","") ->  | I17: =IF(AND(S17=TRUE,T17=TRUE,D17>=5),"speziellen Antrag mit Merkblattregelung bei GVU anfordern","") ->  | J17: Wird in AN-Finanzierung nicht angeboten, Absicherung in Tarife des Einzelgeschäfts | S17: FALSE | T17: FALSE

Sheet Wettbewerb Budget
C2: Versicherer | D2: Gothaer | E2: Barmenia | F2: Allianz | G2: ARAG | H2: AXA | I2: AXA | J2: Continentale | K2: Continentale | L2: Continentale | M2: Debeka | N2: DKV | O2: Generali | P2: Hallesche | Q2: Hallesche | R2: Hallesche | S2: Hallesche | T2: HanseMerkur | U2: HanseMerkur | V2: LKH | W2: LKH | X2: LKH | Y2: Münchner Verein | Z2: Nürnberger | AA2: Ottonova | AB2: R+V | AC2: SDK | AD2: SDK | AE2: Signal Iduna | AF2: Signal Iduna | AG2: Signal Iduna | AH2: UKV/VKB | AI2: Württembergische | AJ2: Württembergische
C3: Tarif | D3: FlexSelect | E3: WellYou pure | F3: MeineGesundheit | G3: BudgetFlex Komfort BL | H3: FlexMed easy | I3: FlexMed easy Plus | J3: Choose | K3: Choose More | L3: Choose MAX | M3: Flex | N3: BonusMed Budget | O3: bKV-Budget | P3: FEELfree | Q3: FEELfree_plus | R3: FEELFree:Up | S3: FEELfree:up_plus | T3: BKB | U3: BKBT | V3: TeamUpgrade Smile | W3: TeamUpgrade Fit | X3: TeamUpgrade Complete | Y3: GemeinsamGesund Budget | Z3: BudgetSelect | AA3: CrewCare | AB3: Budget PROFIL | AC3: ZahnBudget | AD3: AmbulantBudget | AE3: GesundAKTIV + | AF3: GesundAGIL+ | AG3: GesundVITAL+ | AH3: BudgetPro | AI3: StartBudget300 | AJ3: Budget300 - 1200
C4: Versicher + Tarif | D4: =D2&" - "&CHAR(10)&D3 -> Gothaer - FlexSelect | E4: =E2&" - "&CHAR(10)&E3 -> Barmenia - WellYou pure | F4: =F2&" - "&CHAR(10)&F3 -> Allianz - MeineGesundheit | G4: ARAG - BudgetFlex Komfort BL | H4: AXA - FlexMed easy | I4: AXA - FlexMed easy Plus | J4: Continentale - Choose | K4: Continentale - Choose More | L4: Continentale - Choose MAX | M4: =M2&" - "&CHAR(10)&M3 -> Debeka - Flex | N4: =N2&" - "&CHAR(10)&N3 -> DKV - BonusMed Budget | O4: Generali - bKV-Budget | P4: Hallesche - FEELfree | Q4: Hallesche - FEELfree_plus | R4: Hallesche - FEELFree:Up | S4: Hallesche - FEELfree:up_plus | T4: HanseMerkur - BKB | U4: HanseMerkur - BKBT | V4: LKH - TeamUpgrade Smile | W4: LKH - TeamUpgrade Fit | X4: =X2&" - "&CHAR(10)&X3 -> LKH - TeamUpgrade Complete | Y4: Münchner Verein - GemeinsamGesund Budget | Z4: Nürnberger - BudgetSelect | AA4: Ottonova - CrewCare | AB4: R+V - Budget PROFIL | AC4: SDK - ZahnBudget | AD4: SDK - AmbulantBudget | AE4: Signal Iduna - GesundAKTIV + | AF4: Signal Iduna - GesundAGIL+ | AG4: Signal Iduna - GesundVITAL+ | AH4: UKV/VKB - BudgetPro | AI4: Württembergische - StartBudget300 | AJ4: Württembergische - Budget300 - 1200
C5: Tarifeinführung | D5: 2020-10-01 | E5: 2025-01-01 | F5: 2025-04-01 | G5: 2022-10-01 | H5: 2021-07-19 | J5: 2020-11-01 | M5: 2023-12-01 | P5: 2018-10-01 | R5: 01.07.2022 | S5: 01.07.2022 | X5: 2025-04-01 | Y5: 2022-09-01 | Z5: 2022-08-01 | AA5: 2022-09-01 | AB5: 2022-07-01 | AC5: 2021-05-01 | AD5: 2021-05-02 | AE5: 2022-10-01 | AF5: 2022-10-02 | AG5: 2022-10-03 | AH5: 2022-09-01
C6: Budget in Euro | D6: 300-500-750 | E6: 300 - 600 - 900 | F6: 300-600-900-1200-1500 | G6: 300-600-900-1200-1500 | H6: 300-600-900-1200-1500 | I6: 300-600-900-1200-1500 | J6: 400-800-1200 | K6: 400-800-1200-1600 | L6: 400-800-1200-1600 | M6: 300-600-900-1200-1500 | N6: 300-600-900-1200 | O6: 300-600-900-1200-1500 | P6: 300-600-900-1200-1500 | Q6: 300-600-900-1200-1500 | R6: 300-600-900-1200-1500 | S6: 300-600-900-1200-1500 | T6: 300-600-900-1200-1500-1700 | U6: 300-600-900-1200-1500-1700 | V6: 300-600-900-1200-1500 | W6: 300-600-900-1200-1500 | X6: 300-600-900-1200-1500 | Y6: 300 | 600 | 1000 | 1500 | Z6: 300-600-900-1200 | AA6: 300-600-900-1200-1500 | AB6: 300-600-900-1200-1500 | AC6: 500-1000-1500 | AD6: 500-1000-1500 | AE6: 300-600-900-1200-1500 | AF6: 300-600-900-1200-1500 | AG6: 300-600-900-1200-1500 | AH6: 400-800-1200 | AI6: 300 | AJ6: 300-600-900-1200
C7: 300 | D7: 10.4 | E7: 13.4 | F7: 13.9 | G7: 10.91 | H7: 11.92 | I7: 12.98 | M7: 10.9 | N7: 15.68 | O7: 12.79 | P7: 12.99 | Q7: 12.99 | R7: 14.5 | S7: 18.61 | T7: 9.9 | U7: 10.9 | V7: 13.5 | W7: 12.5 | X7: 12.5 | Y7: 12.9 | Z7: 11.9 | AA7: 13.21 | AB7: 18.93 | AE7: 13 | AF7: 24.22 | AG7: 32.68 | AI7: 5.85 | AJ7: 12.31
C8: 400 | J8: 14.49 | K8: 31.5 | L8: 32.66 | AH8: 17.51
C9: 500 | D9: 15.65 | AC9: 10.88 | AD9: 19.56
C10: 600 | E10: 21.7 | F10: 22.9 | G10: 19.48 | H10: 21.88 | I10: 19.33 | J10: 17.75 | K10: 38.01 | L10: 44 | M10: 19.9 | N10: 25.97 | O10: 24.48 | P10: 22.88 | Q10: 22.88 | R10: 25.67 | S10: 29.64 | T10: 17.9 | U10: 19.9 | V10: 21.9 | W10: 18.9 | X10: 18.9 | Y10: 21.9 | Z10: 19.7 | AA10: 22.54 | AB10: 32.95 | AE10: 22 | AF10: 33.22 | AG10: 41.68 | AJ10: 19.82
C11: 750 | D11: 20.9
C12: 800 | J12: 23.21 | K12: 42.74 | L12: 47.99 | AH12: 28.46
C13: 900 | E13: 30 | F13: 32.9 | G13: 26.88 | H13: 28.95 | I13: 23.55 | M13: 26.9 | N13: 33.84 | O13: 28.42 | P13: 32.75 | Q13: 32.75 | R13: 35.3 | S13: 39.53 | T13: 23.9 | U13: 26.9 | V13: 29.5 | W13: 23.9 | X13: 23.9 | Z13: 29.5 | AA13: 31.17 | AB13: 43.57 | AE13: 30 | AF13: 41.22 | AG13: 49.68 | AJ13: 24.33
C14: 1000 | Y14: 34.5 | AC14: 16.17 | AD14: 25.93
C15: 1200 | F15: 41.9 | G15: 33.89 | H15: 36.33 | I15: 27.72 | J15: 28.98 | K15: 51.45 | L15: 59.85 | M15: 32.9 | N15: 40.32 | O15: 35.74 | P15: 41.96 | Q15: 41.96 | R15: 44.22 | S15: 49.14 | T15: 28.9 | U15: 32.9 | V15: 36.9 | W15: 28.5 | X15: 28.5 | Z15: 36.9 | AA15: 38.74 | AB15: 58.51 | AE15: 37 | AF15: 48.22 | AG15: 56.68 | AJ15: 28.48
C16: 1250 | AH16: 38.94
C17: 1500 | F17: 49.9 | G17: 38.95 | H17: 42.67 | I17: 31.87 | M17: 37.9 | O17: 42.96 | P17: 49 | Q17: 49 | R17: 49.92 | S17: 56.03 | T17: 33.9 | U17: 37.9 | V17: 44.9 | W17: 33.5 | X17: 33.5 | Y17: 48 | AA17: 44.03 | AB17: 65.96 | AC17: 20.74 | AD17: 31.59 | AE17: 43 | AF17: 54.22 | AG17: 62.68
C18: 1600 | K18: 57.86 | L18: 67.52
C19: 1700 | M19: 41.9 | T19: 37.9 | U19: 41.9
C20: Prämie in Euro inkl. Beitragsbefreiung | D20: 10,40 | 15,65 | 20,90 | E20: 13,40 | 21,70 | 30,00 | F20: 13,90 | 22,90 | 32,90 | 41,90 | 49,90 | G20: 10,91 | 19,48 | 26,88 | 33,89 | 38,95 | H20: 11,92 | 21,88 | 28,95 | 36,33 | 42,67 | I20: 12,98 | 19,33 | 23,55 | 27,72 | 31,87 | J20: 14,49 | 17,75 | 23,21 | 28,98 | K20: 31,50 | 38,01 | 42,74 | 51,45 | 57,86 | L20: 32,66 | 44,00 | 47,99 | 59,85 | 67,52 | M20: 16,80 | 22,48 | 28,18 | 33,18 | 37,48 | N20: 15,68 | 25,97 | 33,84 | 40,32 | O20: 12,79 | 21,48 | 28,42 | 35,74 | 42,96 | P20: 9,95 | 19,75 | 28,27 | 36,16 | 42,24 | Q20: 12,99 | 22,88 | 32,75 | 41,96 | 49,00 | R20: 14,50 | 25,67 | 35,30 | 44,22 | 49,92 | S20: 18,61 | 29,64 | 39,53 | 49,14 | 56,03 | T20: 9,90 | 17,90 | 23,90 | 28,90 | 33,90 | 37,90 ohne Beitragsbefreiung! Zuschlag für BBF nicht bekannt. | U20: 10,90 | 19,90 | 26,90 | 32,90 | 37,90 | 41,90 ohne Beitragsbefreiung! Zuschlag für BBF nicht bekannt. | V20: 13,50 | 21,90 | 29,50 | 36,90 | 44,90 keine Bbefreiung vorhanden | W20: 12,50 | 18,90 | 23,90 | 28,50 | 33,50 keine Bbefreiung vorhanden | X20: 13,90 | 22,90 | 30,90 | 38,90 | 46,90 keine Bbefreiung vorhanden | Y20: 12,90 | 21,90 | 34,50 | 48,00 | Z20: 11,90 | 19,70 | 29,50 | 36,90 | AA20: 13,21 | 22,54 | 31,17 | 38,74 | 44,03 Beachte: Beitragsbefreiung auf Anfrage möglich, ggfs. Preisabweichung | AB20: ab 5 MA 18,93 | 32,95 | 43,57 | 58,51 | 65,96 ab 10 MA 15,25 | 26,54 | 35,10 | 47,13 | 53,14 | AC20: 10,88 | 16,17 | 20,74 | AD20: 19,56 | 25,93 | 31,59 | AE20: 13,00 | 22,00 | 30,00 | 37,00 | 43,00 | AF20: 24,22 | 33,22 | 41,22 | 48,22 | 54,22 | AG20: 32,68 | 41,68 | 49,68 | 56,68 | 62,68 | AH20: 17,51 | 28,46 | 38,94 | AI20: 5.85 | AJ20: 12,31 | 19,82 | 24,33 | 28,48
C21: Mindest-VP | D21: 5 (+90% Durchdrg.) | E21: Budgeststufe 300: 10 VP ab Budgetstufe 600: 5 VP | F21: 5 | G21: 10 | H21: 10 | I21: 10 | J21: 10 | K21: 10 | L21: 10 | M21: 10 | N21: 10 | O21: unbekannt | P21: 10 | Q21: 10 | R21: 10 | S21: 10 | T21: 5 | U21: 5 | V21: 5 | W21: 5 | X21: 5 | Y21: Budgetstufe 300: 10 VP ab Budgetstufe 600: 5 VP | Z21: 5 | AA21: 5 | AB21: 5 | AC21: 5 | AD21: 5 | AE21: 3 | AF21: 3 | AG21: 3 | AH21: 10 | AI21: 3 | AJ21: 3
C22: Familienangehörige | D22: ja in FlexSelect FAN | E22: ja in WellYou pure Me | F22: ja | G22: ja | H22: nein | I22: nein | J22: ja, mit Ausschlussdiagnosen | K22: ja, mit Ausschlussdiagnosen | L22: nein | M22: ja | N22: nein | O22: unbekannt | P22: separate Tarfibausteine | Q22: separate Tarfibausteine | R22: separate Tarifbausteine | S22: separate Tarifbausteine | T22: nur, wenn Familienangehörige auch AG-finanziert mitversichert werden, sonst Bausteintarife | U22: nur, wenn Familienangehörige auch AG-finanziert mitversichert werden, sonst Bausteintarife | V22: ja | W22: ja | X22: ja | Y22: nein | Z22: ja | AA22: nein | AB22: ja | AC22: ja | AD22: ja | AE22: ja | AF22: ja | AG22: ja | AH22: in Bausteinen | AI22: ja | AJ22: ja
B23: Ambulant | C23: Verordnete Arznei-, Verband-, Heil,- Hilfsmittel | D23: P | E23: P | F23: P | G23: P | H23: P | I23: P | J23: × | K23: P | L23: P | M23: P | N23: P | O23: P | P23: P | Q23: P | R23: P | S23: P | T23: P | U23: P | V23: P | W23: P | X23: P | Y23: P | Z23: P | AA23: P | AB23: P | AC23: × | AD23: P | AE23: P | AF23: P | AG23: P | AH23: P | AI23: × | AJ23: P
C24: nicht verordnete Arzneimittel) | D24: × | E24: × | F24: × | G24: × | H24: × | I24: × | J24: × | K24: × | L24: × | M24: × | N24: × | O24: × | P24: × | Q24: × | R24: × | S24: × | T24: × | U24: × | V24: × | W24: × | X24: × | Y24: × | Z24: × | AA24: × | AB24: × | AC24: × | AD24: × | AE24: × | AF24: × | AG24: × | AH24: × | AI24: × | AJ24: ×
C25: Ärztliche Behandlung | D25: × | E25: × | F25: P | G25: × | H25: × | I25: × | J25: × | K25: × | L25: × | M25: × | N25: × | O25: × | P25: × | Q25: × | R25: × | S25: × | T25: × | U25: × | V25: × | W25: × | X25: × | Y25: × | Z25: × | AA25: × | AB25: × | AC25: × | AD25: × | AE25: × | AF25: × | AG25: × | AH25: × | AI25: × | AJ25: ×
C26: Heilpraktiker | D26: × | E26: P | F26: P | G26: P | H26: P | I26: P | J26: P | K26: P | L26: P | M26: P | N26: P | O26: P | P26: P | Q26: P | R26: P | S26: P | T26: P | U26: P | V26: P | W26: P | X26: P | Y26: P | Z26: P | AA26: P | AB26: P | AC26: × | AD26: P | AE26: P | AF26: P | AG26: P | AH26: P | AI26: × | AJ26: P
C27: Naturheilverfahren durch Ärzte | D27: × | E27: P | F27: P | G27: P | H27: P | I27: P | J27: × | K27: P | L27: P | M27: P | N27: P | O27: P | P27: × | Q27: × | R27: × | S27: × | T27: P | U27: P | V27: P | W27: P | X27: P | Y27: P | Z27: P | AA27: P | AB27: P | AC27: × | AD27: P | AE27: P | AF27: P | AG27: P | AH27: P | AI27: × | AJ27: P
C28: Chiropraktik, Osteopathie | D28: × | E28: P | F28: P | G28: P | H28: × | I28: × | J28: × | K28: P | L28: P | M28: nur Osteo | N28: × | O28: × | P28: P | Q28: P | R28: P | S28: P | T28: × | U28: × | V28: P | W28: P | X28: P | Y28: nur Osteo | Z28: nur Osteopathie | AA28: nur Osteo | AB28: nur Osteopathie | AC28: × | AD28: nur Osteo | AE28: P | AF28: P | AG28: P | AH28: nur Osteo | AI28: × | AJ28: nur Osteo
C29: Hörgeräte | D29: P | E29: P | F29: P | G29: P | H29: P | I29: P | J29: × | K29: P | L29: P | M29: P50% d. Budgets | N29: P | O29: P | P29: P | Q29: P | R29: P | S29: P | T29: P | U29: P | V29: P | W29: P | X29: P | Y29: P | Z29: P | AA29: P | AB29: P | AC29: × | AD29: × | AE29: P | AF29: P | AG29: P | AH29: P | AI29: × | AJ29: P
C30: Sehhilfe | D30: P180€ | E30: P170-210€ | F30: P75% d. Rechnungsbetrags aus Budgethöhe oder 75% aus Extrabudget (Sufen 300-1500) oder 100% aus Budgethöhe | G30: P max. 180€/Jahr | H30: P180€ | I30: P300€ | J30: P200€/2 J. | K30: P250€ | L30: P | M30: P50% d. Budgets | N30: P | O30: P200€/Jahr | P30: P180€ | Q30: P180€ | R30: P180€ | S30: P180€ | T30: P 200€, 225€, 250€, 275€, ab Tarifstufe 1.500€ 300€ zus. mit LASIK | U30: P 250€, 300€, 350€, 400€, ab Tarifstufe 1.500€ 450€ | V30: P200-400€/Jahr | W30: P200-400€/Jahr | X30: P180-260€/Jahr | Y30: P50% des Budgets | Z30: P50% d. Budgets | AA30: P 200-300 €/Jahr | AB30: P | AC30: × | AD30: Palle 2 Kj., bis 200€ | AE30: P max. 300€/Jahr | AF30: P max. 300€/Jahr | AG30: P max. 300€/Jahr | AH30: P180 - 220 €/Jahr | AI30: P 90€ | AJ30: P 120€ in Budget300, sonst 180€
C31: Sehschärfenkorrektur / Lasik | D31: P | E31: P | F31: P | G31: P | H31: P | I31: P | J31: P200€/2 J. | K31: P | L31: P | M31: P | N31: P | O31: P | P31: P180€ | Q31: P180€ | R31: P | S31: P | T31: P 200€, 225€, 250€, 275€, ab Tarifstufe 1.500€ 300€ zus. mit Sehhilfen | U31: P | V31: P200-400€/Jahr | W31: P200-400€/Jahr | X31: P | Y31: P | Z31: P | AA31: P | AB31: P | AC31: × | AD31: P | AE31: P | AF31: P | AG31: P | AH31: P | AI31: P 90€ | AJ31: P 90€
C32: Vorsorge-/Präventionsleistung | D32: × | E32: P | F32: P | G32: × | H32: × | I32: × | J32: P | K32: P | L32: P | M32: P aber keine IGel | N32: P | O32: P | P32: × | Q32: P | R32: × | S32: P | T32: P nur ausgewählte | U32: P | V32: nur Präventionskurse | W32: P | X32: P | Y32: P | Z32: P | AA32: × | AB32: P | AC32: × | AD32: P | AE32: P | AF32: P | AG32: P | AH32: × | AI32: P | AJ32: P
C33: Schutzimpfungen | D33: × | E33: × | F33: P | G33: × | H33: × | I33: × | J33: × | K33: P | L33: P | M33: × | N33: P | O33: P | P33: × | Q33: P | R33: × | S33: P | T33: P nur Auslansdreiseschutz | U33: P nur Auslansdreiseschutz | V33: × | W33: P | X33: P | Y33: P | Z33: P | AA33: × | AB33: P | AC33: × | AD33: P | AE33: P | AF33: P | AG33: P | AH33: × | AI33: × | AJ33: P
B34: Stationär | C34: Krankenhaustagegeld | D34: P10€, 28 Tage | E34: × | F34: × | G34: × | H34: × | I34: × | J34: P150€ ab 5. Tag | K34: P150€ ab 5. Tag | L34: P150€ ab 5. Tag | M34: × | N34: × | O34: P10€ | P34: × | Q34: × | R34: × | S34: × | T34: P10€, 28 Tage | U34: P15€, 28 Tage, auch für Reha | V34: P10€, 28 Tage | W34: P10€, 28 Tage | X34: × | Y34: × | Z34: × | AA34: × | AB34: × | AC34: × | AD34: × | AE34: × | AF34: × | AG34: × | AH34: P10€ / Tag | AI34: × | AJ34: P10€, 28 Tage
C35: Verdoppelung Budget bei Arbeitsunfall mit stat. Bhdlg. | D35: × | E35: × | F35: × | G35: × | H35: × | I35: × | J35: × | K35: × | L35: P | M35: × | N35: × | O35: × | P35: × | Q35: × | R35: P | S35: P | T35: × | U35: × | V35: × | W35: × | X35: × | Y35: × | Z35: × | AA35: × | AB35: × | AC35: × | AD35: × | AE35: × | AF35: × | AG35: × | AH35: × | AI35: × | AJ35: ×
C36: Anschluss-Reha (AHB) | D36: × | E36: × | F36: × | G36: × | H36: × | I36: × | J36: × | K36: P150€ | L36: P150€ | M36: × | N36: × | O36: × | P36: × | Q36: × | R36: × | S36: × | T36: × | U36: × | V36: × | Y36: × | Z36: × | AA36: × | AB36: × | AC36: × | AD36: × | AE36: × | AF36: × | AG36: × | AH36: × | AI36: ×
C37: Krankentransporte | D37: × | E37: × | F37: × | G37: × | H37: × | I37: × | J37: × | K37: P250€ | L37: P | M37: × | N37: × | O37: × | P37: × | Q37: × | R37: × | S37: × | T37: × | U37: × | V37: × | W37: × | Y37: × | Z37: × | AA37: × | AB37: × | AC37: × | AD37: × | AE37: × | AF37: × | AG37: × | AH37: × | AI37: × | AJ37: nur Zuzahlung
B38: KT | C38: Kinderkrankentagegeld | D38: × | E38: × | F38: × | G38: P 15€/Tag | H38: × | I38: × | J38: × | K38: × | L38: × | M38: × | N38: × | O38: × | P38: × | Q38: × | R38: × | S38: × | T38: × | U38: × | V38: × | W38: × | Y38: P | Z38: × | AA38: × | AB38: × | AC38: × | AD38: × | AE38: × | AF38: × | AG38: × | AH38: × | AI38: × | AJ38: ×
B39: Zahn | C39: PZR | D39: P 80€ | E39: P 60-100€ zs. mit Bleaching | F39: P | G39: P max. 80€/Jahr | H39: P80€ zusammen mit Bleaching | I39: P | J39: P 75€ | K39: P250€ zusammen mit Bleaching | L39: P | M39: P Max. 2 mal im KJ. | N39: P | O39: P100€/Jahr | P39: P 60€ | Q39: P 60€ | R39: P 100€ | S39: P 100€ | T39: P 80€, 100€, ab Tarifstufe 900€ 120€ zus. mit Bleaching | U39: P 200€, 250€, ab Tarifstufe 900€ 300 € zus. mit Bleaching | V39: P | W39: P | X39: P80-160€/Jahr zs. mit Bleaching | Y39: P | Z39: P | AA39: P125 € für PZR und Bleaching | AB39: P | AC39: P1xjährlich | AD39: × | AE39: P max. 300€/Jahr | AF39: P max. 300€/Jahr | AG39: P max. 300€/Jahr | AH39: P | AI39: P 40€ | AJ39: P 80€
C40: Bleaching | D40: × | E40: P 60-100€ zs. mit PZR | F40: P | G40: × | H40: P 80€ zusammen mit PZR | I40: P80€ | J40: × | K40: P250€ zusammen mit PZR | L40: P | M40: × | N40: × | O40: × | P40: P 60€ | Q40: P 60€ | R40: P 100€ | S40: P 100€ | T40: P 80€, 100€, ab Tarifstufe 900€ 120€ zus. mit PZR | U40: P 200€, 250€, ab Tarifstufe 900€ 300 € zus. mit Bleaching | V40: P200-400€/Jahr | W40: × | X40: P80-160€/Jahr zs. mit Bleaching | Y40: P | Z40: P | AA40: P125 € für PZR und Bleaching | AB40: × | AC40: × | AD40: × | AE40: P max. 100€/Jahr | AF40: P max. 100€/Jahr | AG40: P max. 100€/Jahr | AH40: × | AI40: × | AJ40: ×
C41: Zahnbehandlung | D41: P | E41: P | F41: P | G41: P | H41: P | I41: P | J41: P | K41: P | L41: P | M41: × | N41: P | O41: × | P41: P | Q41: P | R41: P | S41: P | T41: P | U41: P | V41: P | W41: × | X41: P | Y41: P | Z41: P | AA41: P | AB41: P | AC41: P | AD41: × | AE41: P | AF41: P | AG41: P | AH41: P | AI41: × | AJ41: P
C42: Zahnersatz | D42: P | E42: P | F42: P | G42: P | H42: P | I42: × | J42: P | K42: P | L42: P | M42: × | N42: P | O42: × | P42: P | Q42: P | R42: P | S42: P | T42: P | U42: P | V42: P | W42: × | X42: P | Y42: P | Z42: P | AA42: P | AB42: P | AC42: P | AD42: × | AE42: P | AF42: P70% Leistung ü. Budget | AG42: P90% Leistung ü. Budget | AH42: P | AI42: optional | AJ42: optional
C43: KFO nach Unfall | D43: × | E43: P | F43: P | G43: P | H43: P | I43: × | J43: × | K43: P | L43: P | M43: × | N43: × | O43: × | P43: × | Q43: × | R43: × | S43: × | T43: P | U43: P | V43: P | W43: × | X43: P | Y43: P | Z43: P | AA43: × | AB43: P | AC43: P | AD43: × | AE43: P | AF43: P | AG43: P | AH43: × | AI43: × | AJ43: P
C44: Familienleistungen | D44: × | E44: × | F44: P | G44: × | H44: × | I44: × | J44: × | K44: × | L44: × | M44: × | N44: × | O44: × | P44: × | Q44: × | R44: × | S44: × | T44: × | U44: × | V44: × | W44: × | X44: × | Y44: × | Z44: × | AA44: × | AB44: × | AC44: × | AD44: × | AE44: × | AF44: × | AG44: × | AH44: × | AI44: × | AJ44: ×
B45: zus. Leistungen | C45: Telemedizin, Facharzttermin. | D45: P | E45: P | F45: P | G45: digitaler Arztbesuch | H45: P | I45: P | J45: P | K45: P | L45: P | M45: × | N45: Pnur Telemedizin | O45: ? | P45: P | Q45: P | R45: P | S45: P | T45: P 2x im Jahr Online-Ärzt:in und Oline-Dermatoglog:in | U45: P 2x im Jahr Online-Ärzt:in und Oline-Dermatoglog:in | V45: P | W45: P | X45: P | Y45: P | Z45: P | AA45: P | AB45: Facharzt | AC45: P | AD45: P | AE45: P | AF45: P | AG45: P | AH45: P | AI45: P | AJ45: P
C46: Erschöpfungsprävention | D46: × | E46: P | F46: P | G46: × | H46: × | I46: × | J46: × | K46: × | L46: × | M46: P | N46: × | O46: ? | P46: × | Q46: × | R46: × | S46: × | T46: P | U46: × | V46: × | W46: × | X46: × | Y46: × | Z46: P | AA46: × | AB46: × | AC46: × | AD46: × | AE46: P | AF46: P | AG46: P | AH46: × | AI46: P | AJ46: P
C47: Gesundheitstelefon | D47: P | E47: P | F47: P | G47: × | H47: P | I47: P | J47: P | K47: P | L47: P | M47: × | N47: P | O47: P | P47: P | Q47: P | R47: P | S47: P | T47: P | U47: × | V47: P | W47: P | X47: P | Y47: P | Z47: P | AA47: P | AB47: P | AC47: P | AD47: P | AE47: P | AF47: P | AG47: P | AH47: × | AI47: P | AJ47: P
C48: Pflegeassistance | D48: P | E48: P | F48: P | G48: × | H48: × | I48: × | J48: × | K48: × | L48: × | M48: × | N48: × | O48: × | P48: × | Q48: × | R48: × | S48: × | T48: × | U48: × | V48: × | W48: × | X48: × | Y48: × | Z48: × | AA48: × | AB48: × | AC48: × | AD48: × | AE48: P | AF48: P | AG48: P | AH48: × | AI48: × | AJ48: ×
C49: Gesundheitsapp | D49: P | E49: P | F49: P | G49: P | H49: P | I49: P | J49: P | K49: P | L49: P | M49: P | N49: P | O49: P | P49: P | Q49: P | R49: P | S49: P | T49: P | U49: P | V49: P | W49: P | X49: P | Y49: P | Z49: P | AA49: P | AB49: P | AC49: P | AD49: P | AE49: P | AF49: P | AG49: P | AH49: P | AI49: P | AJ49: P
C50: Unterjährig volles Budget | D50: × | E50: P | F50: P | G50: P | H50: P | I50: P | J50: × | K50: P | L50: P | M50: P | N50: × | O50: ? | P50: × | Q50: × | R50: P | S50: P | T50: ? | U50: P | V50: P | W50: P | X50: P | Y50: P | Z50: P | AA50: P | AB50: P | AC50: × | AD50: × | AE50: P | AF50: P | AG50: P | AH50: P | AI50: × | AJ50: ×
O51: noch keine QS, da AVB nicht vorliegen
F52: Verdopplung des Budgets bei Leistungsfreiheit Beiträge mit Extra-Sehhilfenbudget: 15.90 | 24,90 | 35,90 | 45,90 | 53,90 | R52: Bei vollständiger Ausnutzung des Budgets erhöht sich das Budget im 1. KJ um 50€, im 2. KJ. Um 100€, im 3. KJ um 150€ und ab dem 4. KJ um 200€ | T52: Für 1€ MB-Mehrbeitrag erhöht sich das Budget bei einem leistungsfreiem Jahr um 25%, bei zwei leistungsfreien Jahren um 50%. | AJ52: Besonderheit Stationär: Erstattungsfähig sind über die Budgethöhe hinaus zu 100 % Mehrkosten bei freier Krankenhauswahl, sofern die GKV eine Vorleistung für die allgemeinen Krankenhausleistungen erbringt.

Sheet Return on Invest
B2: Wirtschaftliche Gesamtbetrachtung des bKV Gesundheitsplans
B3: Aus prozessualen Gründen sollten keine Kombinationen aus Barmenia und Gothaer gewählt werden.
B4: Branche | D4: Gesundheitswesen
D5: Gruppe 1 | E5: Gruppe 2 | F5: Gruppe 3 | G5: Gesamt
B6: Anzahl Mitarbeitende | D6: 500 | G6: ='Detail Berechnung'!G7 -> 500
B7: Durchschnittliches Jahresbruttoeinkommen je Mitarbeitenden | D7: =IF(D4="","",VLOOKUP(D4,Branchenzahlen!B3:F13,3,FALSE)) -> 55908 | E7: =IF(E6="","",D7) ->  | F7: =IF(E6="","",D7) -> 
B9: Tarifwauswahl
B10: Budgettarif | D10: Gothaer - FlexSelect
B11: Budgetstufen | D11: =IF(D10="","",HLOOKUP(D10,'Wettbewerb Budget'!B4:AJ50,3,FALSE)) -> 300-500-750 | E11: =IF(E10="","",HLOOKUP(E10,'Wettbewerb Budget'!B4:AJ50,3,FALSE)) ->  | F11: =IF(F10="","",HLOOKUP(F10,'Wettbewerb Budget'!B4:AJ50,3,FALSE)) -> 
B12: Gewünschte Budgethöhe | D12: 750
B13: Monatlicher Beitrag je Mitarbeitenden (inkl. Beitragsbefreiung) | D13: =IF(OR(D12="",D10=""),"",INDEX('Wettbewerb Budget'!C4:AJ19,MATCH(D12,'Wettbewerb Budget'!C4:C19,0),MATCH(D10,'Wettbewerb Budget'!C4:AJ4,0))) -> 20.9 | E13: =IF(OR(E12="",E10=""),"",INDEX('Wettbewerb Budget'!C4:AJ19,MATCH(E12,'Wettbewerb Budget'!C4:C19,0),MATCH(E10,'Wettbewerb Budget'!C4:AJ4,0))) ->  | F13: =IF(OR(F12="",F10=""),"",INDEX('Wettbewerb Budget'!C4:AJ19,MATCH(F12,'Wettbewerb Budget'!C4:C19,0),MATCH(F10,'Wettbewerb Budget'!C4:AJ4,0))) -> 
B15: Baustein Stationär | D15: MediGroupAG S 2
B16: Monatllicher Beitrag je Mitarbeitenden (inkl. Beitragsbefreiung) | D16: =IF(D15="","",VLOOKUP(D15,Branchenzahlen!B18:C39,2,FALSE)) -> 20.84 | E16: =IF(E15="","",VLOOKUP(E15,Branchenzahlen!B18:C39,2,FALSE)) ->  | F16: =IF(F15="","",VLOOKUP(F15,Branchenzahlen!B18:D39,2,FALSE)) -> 
B17: Baustein Zahnersatz
B18: Monatllicher Beitrag je Mitarbeitenden (inkl. Beitragsbefreiung) | D18: =IF(D17="","",VLOOKUP(D17,Branchenzahlen!B18:C39,2,FALSE)) ->  | E18: =IF(E17="","",VLOOKUP(E17,Branchenzahlen!B18:C39,2,FALSE)) ->  | F18: =IF(F17="","",VLOOKUP(F17,Branchenzahlen!B18:C39,2,FALSE)) -> 
B19: Baustein Zahnbehandlung
B20: Monatllicher Beitrag je Mitarbeitenden (inkl. Beitragsbefreiung) | D20: =IF(D19="","",VLOOKUP(D19,Branchenzahlen!B20:C39,2,FALSE)) ->  | E20: =IF(E19="","",VLOOKUP(E19,Branchenzahlen!B20:C39,2,FALSE)) ->  | F20: =IF(F19="","",VLOOKUP(F19,Branchenzahlen!B20:C39,2,FALSE)) -> 
B21: Baustein Vorsorge
B22: Monatllicher Beitrag je Mitarbeitenden (inkl. Beitragsbefreiung) | D22: =IF(D21="","",VLOOKUP(D21,Branchenzahlen!B20:C39,2,FALSE)) ->  | E22: =IF(E21="","",VLOOKUP(E21,Branchenzahlen!B20:C39,2,FALSE)) ->  | F22: =IF(F21="","",VLOOKUP(F21,Branchenzahlen!B20:C39,2,FALSE)) -> 
B23: Baustein Ambulant
B24: Monatllicher Beitrag je Mitarbeitenden (inkl. Beitragsbefreiung) | D24: =IF(D23="","",VLOOKUP(D23,Branchenzahlen!B27:C45,2,FALSE)) ->  | E24: =IF(E23="","",VLOOKUP(E23,Branchenzahlen!B27:C45,2,FALSE)) ->  | F24: =IF(F23="","",VLOOKUP(F23,Branchenzahlen!B27:C45,2,FALSE)) -> 
B26: Jährliche Gesamtbelastung durch den Gesundheitsplan | D26: =D47 -> -250440 | E26: =E47 ->  | F26: =F47 ->  | G26: ='Detail Berechnung'!G27 -> 250440
B28: Senkung der Absentismuskosten
B29: Durchschnittl. AU-Tage je Mitarbeitenden (hier Branchendurchschnitt) | D29: =IF(OR(D4="",D6=""),"",IF(D4="","",VLOOKUP(D4,Branchenzahlen!B3:F13,4,FALSE))) -> 26.3 | E29: =IF(OR(D4="",E6=""),"",IF(D4="","",VLOOKUP(D4,Branchenzahlen!B3:F13,4,FALSE))) ->  | F29: =IF(OR(D4="",F6=""),"",IF(D4="","",VLOOKUP(D4,Branchenzahlen!B3:F13,4,FALSE))) -> 
B30: Durchschnittl. Ausfall- und Produktivitätsverlustkosten je Mitarbeitenden je AU-Tag | D30: =IF(AND(OR(D4="",D10=""),OR(D4="",D15=""),OR(D4="",D10="",D15="")),"",366) -> 366 | E30: =IF(AND(OR(D4="",E10=""),OR(D4="",E15=""),OR(D4="",E10="",E15="")),"",366) ->  | F30: =IF(AND(OR(D4="",F10=""),OR(D4="",F15=""),OR(D4="",F10="",F15="")),"",366) -> 
B31: Annahme/Zielwert: Reduktion von Fehlzeiten in Tagen | D31: =IF(OR($D$4="",D10=""),"",IF(AND(OR(D13="",D16=""),OR(D13="",D18=""),OR(D13="",D20=""),OR(D13="",D22=""),OR(D13="",D24="")),0.5,0.7)) -> 0.7 | E31: =IF(OR($D$4="",E10=""),"",IF(AND(OR(E13="",E16=""),OR(E13="",E18=""),OR(E13="",E20=""),OR(E13="",E22=""),OR(E13="",E24="")),0.5,0.7)) ->  | F31: =IF(OR($D$4="",F10=""),"",IF(AND(OR(F13="",F16=""),OR(F13="",F18=""),OR(F13="",F20=""),OR(F13="",F22=""),OR(F13="",F24="")),0.5,0.7)) -> 
B32: Jährliche Ersparnis durch den Gesundheitsplan | D32: ='Detail Berechnung'!D40 -> 128100 | E32: ='Detail Berechnung'!E40 ->  | F32: ='Detail Berechnung'!F40 ->  | G32: ='Detail Berechnung'!G40 -> 128100
B34: Senkung der Präsentismuskosten
B35: Durchschnittl. Leistungsminderung je Mitarbeitenden | D35: =IF(AND(OR(D4="",D10=""),OR(D4="",D15=""),OR(D4="",D10="",D15="")),"",20%) -> 0.2 | E35: =IF(AND(OR(D4="",E10=""),OR(D4="",E15=""),OR(D4="",E10="",E15="")),"",20%) ->  | F35: =IF(AND(OR(D4="",F10=""),OR(D4="",F15=""),OR(D4="",F10="",F15="")),"",20%) -> 
B36: Anteil der Mitarbeitenden, die trotz Erkrankung arbeiten in % | D36: =IF(AND(OR(D4="",D10=""),OR(D4="",D15=""),OR(D4="",D10="",D15="")),"",23.5%) -> 0.235 | E36: =IF(AND(OR(D4="",E10=""),OR(D4="",E15=""),OR(D4="",E10="",E15="")),"",23.5%) ->  | F36: =IF(AND(OR(D4="",F10=""),OR(D4="",F15=""),OR(D4="",F10="",F15="")),"",23.5%) -> 
B37: Annahme/Zielwert: Senkung von Präsentismuskosten in % | D37: =IF(AND(OR($D$4="",D10=""),OR($D$4="",D15=""),OR($D$4="",D10="",D15="")),"",IF(OR(AND(D13,D16=""),AND(D13="",D16)),5%,6.5%)) -> 0.065 | E37: =IF(AND(OR($D$4="",E10=""),OR($D$4="",E15=""),OR($D$4="",E10="",E15="")),"",IF(OR(AND(E13,E16=""),AND(E13="",E16)),5%,6.5%)) ->  | F37: =IF(AND(OR($D$4="",F10=""),OR($D$4="",F15=""),OR($D$4="",F10="",F15="")),"",IF(OR(AND(F13,F16=""),AND(F13="",F16)),5%,6.5%)) -> 
B38: Mögliche Ersparnis durch den Gesundheitspaln | D38: ='Detail Berechnung'!D51 -> 196237.08 | E38: ='Detail Berechnung'!E51 ->  | F38: ='Detail Berechnung'!F51 ->  | G38: ='Detail Berechnung'!G51 -> 196237.08
B40: Senkung der Fluktuationskosten
B41: Durchschnttl. Fluktuationsrate (hier Branchendurchschnitt) | D41: =IF(OR(D4="",D6=""),"",IF(D4="","",VLOOKUP(D4,Branchenzahlen!B3:F13,5,FALSE))) -> 0.219 | E41: =IF(OR(D4="",E6=""),"",IF(D4="","",VLOOKUP(D4,Branchenzahlen!B3:F13,5,FALSE))) ->  | F41: =IF(OR(D4="",F6=""),"",IF(D4="","",VLOOKUP(D4,Branchenzahlen!B3:F13,5,FALSE))) -> 
B42: Fluktuationskosten in % vom Jahresbruttoeinkommen | D42: =IF(AND(OR($D$4="",D10=""),OR($D$4="",D15=""),OR($D$4="",D10="",D15="")),"",120%) -> 1.2 | E42: =IF(AND(OR($D$4="",E10=""),OR($D$4="",E15=""),OR($D$4="",E10="",E15="")),"",120%) -> 
B43: Annahme/Zielwert: Senkung der Fluktuation in % | D43: =IF(AND(OR($D$4="",D10=""),OR($D$4="",D15=""),OR($D$4="",D10="",D15="")),"",IF(OR(AND(D13,D16=""),AND(D13="",D16)),0.4/100,0.7/100)) -> 0.007 | E43: =IF(AND(OR($D$4="",E10=""),OR($D$4="",E15=""),OR($D$4="",E10="",E15="")),"",IF(OR(AND(E13,E16=""),AND(E13="",E16)),0.4/100,0.7/100)) ->  | F43: =IF(AND(OR($D$4="",F10=""),OR($D$4="",F15=""),OR($D$4="",F10="",F15="")),"",IF(OR(AND(F13,F16=""),AND(F13="",F16)),0.4/100,0.7/100)) -> 
B44: Jährliche Ersparnis durch den Gesundheitsplan | D44: ='Detail Berechnung'!D64 -> 234813.6 | E44: ='Detail Berechnung'!E64 ->  | F44: ='Detail Berechnung'!F64 ->  | G44: ='Detail Berechnung'!G64 -> 234813.6
B46: Jährliche Gesamterspanis durch Senkung der Kosten (kumuliert) | D46: ='Detail Berechnung'!D66 -> 559150.68 | E46: ='Detail Berechnung'!E66 ->  | F46: ='Detail Berechnung'!F66 ->  | G46: ='Detail Berechnung'!G66 -> 559150.68
B47: Jährliche Gesamtbelastung durch Gesundheitsplan (inkl. Beitragsbefreiungsoption) | D47: ='Detail Berechnung'!D67 -> -250440 | E47: ='Detail Berechnung'!E67 ->  | F47: ='Detail Berechnung'!F67 ->  | G47: ='Detail Berechnung'!G67 -> -250440
B48: Wirtschaftlicher Return | D48: ='Detail Berechnung'!D68 -> 308710.68 | E48: ='Detail Berechnung'!E68 ->  | F48: ='Detail Berechnung'!F68 ->  | G48: ='Detail Berechnung'!G68 -> 308710.68

Sheet Detail Berechnung
B3: Betriebswirtschaftliche Betrachtung eines Gesundheitsplans
B5: Branche | D5: ='Return on Invest'!D4 -> Gesundheitswesen
D6: Gruppe 1 | E6: Gruppe 2 | F6: Gruppe 3 | G6: Gesamt
B7: Anzahl Mitarbeitende | D7: ='Return on Invest'!D6 -> 500 | G7: =D7+E7+F7 -> 500
B8: Durchschnittliches Jahresbruttoeinkommen je Mitarbeitenden | D8: ='Return on Invest'!D7 -> 55908 | E8: ='Return on Invest'!E7 ->  | F8: ='Return on Invest'!F7 -> 
B9: Bei Budgettarifen: Auswahl von Gesellschaft und Tarif | D9: ='Return on Invest'!D10 -> Gothaer - FlexSelect | E9: ='Return on Invest'!E10 -> 0 | F9: ='Return on Invest'!F10 -> 0
B10: Budgetstufen | D10: ='Return on Invest'!D11 -> 300-500-750 | E10: ='Return on Invest'!E11 ->  | F10: ='Return on Invest'!F11 -> 
B11: Gewünschte Budgethöhe | D11: ='Return on Invest'!$D$12 -> 750 | E11: ='Return on Invest'!E12 -> 0 | F11: ='Return on Invest'!F12 -> 0
B12: Monatlicher Beitrag je Mitarbeitenden (inkl. Beitragsbefreiung) | D12: ='Return on Invest'!D13 -> 20.9 | E12: ='Return on Invest'!E13 ->  | F12: ='Return on Invest'!F13 -> 
B14: Baustein Stationär | D14: ='Return on Invest'!D15 -> MediGroupAG S 2 | E14: ='Return on Invest'!E15 -> 0 | F14: ='Return on Invest'!F15 -> 0
B15: Monatllicher Beitrag je Mitarbeitenden (inkl. Beitragsbefreiung) | D15: ='Return on Invest'!D16 -> 20.84 | E15: ='Return on Invest'!E16 ->  | F15: ='Return on Invest'!F16 -> 
B16: Baustein Zahnersatz | D16: ='Return on Invest'!D17 -> 0 | E16: ='Return on Invest'!E17 -> 0 | F16: ='Return on Invest'!F17 -> 0
B17: Monatllicher Beitrag je Mitarbeitenden (inkl. Beitragsbefreiung) | D17: ='Return on Invest'!D18 ->  | E17: ='Return on Invest'!E18 ->  | F17: ='Return on Invest'!F18 -> 
B18: Baustein Zahnbehandlung | D18: ='Return on Invest'!D19 -> 0 | E18: ='Return on Invest'!E19 -> 0 | F18: ='Return on Invest'!F19 -> 0
B19: Monatllicher Beitrag je Mitarbeitenden (inkl. Beitragsbefreiung) | D19: ='Return on Invest'!D20 ->  | E19: ='Return on Invest'!E20 ->  | F19: ='Return on Invest'!F20 -> 
B20: Baustein Vorsorge | D20: ='Return on Invest'!D21 -> 0 | E20: ='Return on Invest'!E21 -> 0 | F20: ='Return on Invest'!F21 -> 0
B21: Monatllicher Beitrag je Mitarbeitenden (inkl. Beitragsbefreiung) | D21: ='Return on Invest'!D22 ->  | E21: ='Return on Invest'!E22 ->  | F21: ='Return on Invest'!F22 -> 
B22: Baustein Ambulant | D22: ='Return on Invest'!D23 -> 0 | E22: ='Return on Invest'!E23 -> 0 | F22: ='Return on Invest'!F23 -> 0
B23: Monatllicher Beitrag je Mitarbeitenden (inkl. Beitragsbefreiung) | D23: ='Return on Invest'!D24 ->  | E23: ='Return on Invest'!E24 ->  | F23: ='Return on Invest'!F24 -> 
B25: Monatliche Belastung je Mitarbeitenden gesamt in Euro | D25: =IF(OR(SUM(D12,D15)=0,),"",SUM(D12,D15,D17,D19,D21,D23)) -> 41.74 | E25: =IF(OR(SUM(E12,E15)=0,),"",SUM(E12,E15,E17,E19,E21,E23)) -> 
B26: Monatliche Gesamtbelastung über alle Mitarbeitenden in Euro | D26: =IF(OR(D7="",D25=""),"",D7*D25) -> 20870 | E26: =IF(OR(E7="",E25=""),"",E7*E25) ->  | F26: =IF(OR(F7="",F25=""),"",F7*F25) ->  | G26: =SUM(D26:F26) -> 20870
B27: Jährliche Gesamtbelastung in Euro | D27: =IF(D26="","",D26*12) -> 250440 | E27: =IF(E26="","",E26*12) ->  | G27: =SUM(D27:F27) -> 250440
B29: Absentismuskosten
B30: Durchschnittliche AU-Tage mit Lohnfortzahlung je Mitarbeitenden | D30: ='Return on Invest'!D29 -> 26.3 | E30: ='Return on Invest'!E29 ->  | F30: ='Return on Invest'!F29 -> 
B31: Krankentage mit Lohnfortzahlung insgesamt | D31: =IF(OR(D7="",D30=""),"",D7*D30) -> 13150 | E31: =IF(OR(E7="",E30=""),"",E7*E30) ->  | F31: =IF(OR(F7="",F30=""),"",F7*F30) -> 
B32: Durchschnittliche tgl. Lohnfortzahlungskosten je Mitarbeitenden in Euro | D32: 152 | E32: 152 | F32: 152
B33: Durchschnittliche tgl. Produktionsaufallkosten je Mitarbeitenden in Euro | D33: 258 | E33: 258 | F33: 258
B34: Jährliche Lohnfortzahlungskosten in Euro | D34: =IF(OR(D31="",D32=""),"",D31*D32) -> 1998800 | E34: =IF(OR(E31="",E32=""),"",E31*E32) ->  | F34: =IF(OR(F31="",F32=""),"",F31*F32) ->  | G34: =SUM(D34:F34) -> 1998800
B35: Durchschnittliche tgl. Ausfallkosten (Lohnfortzahlungskosten addiert mit Produktionsausfallkosten) je Mitarbeitenden in Euro | D35: ='Return on Invest'!$D$30 -> 366 | E35: ='Return on Invest'!E30 ->  | F35: ='Return on Invest'!F30 -> 
B36: Jährliche Ausfallkosten insgesamt in Euro | D36: =IF(OR(D31="",D35=""),"",D31*D35) -> 4812900 | E36: =IF(OR(E31="",E35=""),"",E31*E35) ->  | F36: =IF(OR(F31="",F35=""),"",F31*F35) ->  | G36: =SUM(D36:F36) -> 4812900
B37: Mögliche Ersparnis
B38: Annahme: durchschnittliche Senkung der Krankheitstage (Angabe in Tagen pro MA) | D38: ='Return on Invest'!$D$31 -> 0.7 | E38: ='Return on Invest'!E31 ->  | F38: ='Return on Invest'!F31 -> 
B39: Jährliche Ersparnis an Lohnfortzahlungskosten in Euro | D39: =IF(OR(D30="",D34="",D38=""),"",D34-D34/D30*(D30-D38)) -> 53200 | E39: =IF(OR(E30="",E34="",E38=""),"",E34-E34/E30*(E30-E38)) ->  | F39: =IF(OR(F30="",F34="",F38=""),"",F34-F34/F30*(F30-F38)) ->  | G39: =SUM(D39:F39) -> 53200
B40: Jährliche Ersparnis an Ausfallkosten in Euro | D40: =IF(OR(D30="",D36="",D38=""),"",D36-D36/D30*(D30-D38)) -> 128100 | E40: =IF(OR(E30="",E36="",E38=""),"",E36-E36/E30*(E30-E38)) ->  | F40: =IF(OR(F30="",F36="",F38=""),"",F36-F36/F30*(F30-F38)) ->  | G40: =SUM(D40:F40) -> 128100
B42: Präsentismuskosten
B43: Anteil der Mitarbeitenden, die trotz Erkrankung arbeiten in % | D43: 0.54 | E43: 0.54 | F43: 0.54
B44: Anzahl der Mitarbeitenden, die trotz Erkrankung arbeiten | D44: =IF(OR(D7="",D43=""),"",D7*D43) -> 270 | E44: =IF(OR(E7="",E43=""),"",E7*E43) ->  | F44: =IF(OR(F7="",F43=""),"",F7*F43) ->  | G44: =SUM(D44:F44) -> 270
B45: Durchschnittl. Jahresbruttoeinkommen je Mitarbeitenden (Branchendurchschnitt) | D45: =IF((D8=""),"",D8) -> 55908 | E45: =IF((E8=""),"",E8) ->  | F45: =IF((F8=""),"",F8) -> 
B46: Durchschnittliche Leistungsminderung je Mitarbeitenden in % | D46: 0.2 | E46: 0.2 | F46: 0.2
B47: Durchschnittliche Kosten der Leistungsminderung pro MA in Euro | D47: =IF(OR(D45="",D46=""),"",D45*D46) -> 11181.6 | E47: =IF(OR(E45="",E46=""),"",E45*E46) ->  | F47: =IF(OR(F45="",F46=""),"",F45*F46) -> 
B48: Jährliche Präsentismuskosten in Euro | D48: =IF(OR(D44="",D47=""),"",D44*D47) -> 3019032 | E48: =IF(OR(E44="",E47=""),"",E44*E47) ->  | F48: =IF(OR(F44="",F47=""),"",F44*F47) ->  | G48: =SUM(D48:F48) -> 3019032
B49: Mögliche Ersparnis
B50: Annahme/Zielwert: Senkung der Präsentismuskosten in % | D50: ='Return on Invest'!D37 -> 0.065 | E50: ='Return on Invest'!E37 ->  | F50: ='Return on Invest'!F37 -> 
B51: Jährliche Ersparnis durch Senkung von Präsentismuskosten | D51: =IF(OR(D48="",D50=""),"",D48*D50) -> 196237.08 | E51: =IF(OR(E48="",E50=""),"",E48*E50) ->  | F51: =IF(OR(F48="",F50=""),"",F48*F50) ->  | G51: =SUM(D51:F51) -> 196237.08
B53: Fluktuationskosten
B54: Fluktuationsquote in % (Annahme oder Erfahrungswert) | D54: ='Return on Invest'!D41 -> 0.219 | E54: ='Return on Invest'!E41 ->  | F54: ='Return on Invest'!F41 -> 
B55: Fluktuationsquote: Anzahl der MA, die das Unternehmen verlassen | D55: =IF(OR(D7="",D54=""),"",D7*D54) -> 109.5 | E55: =IF(OR(E7="",E54=""),"",E7*E54) ->  | F55: =IF(OR(F7="",F54=""),"",F7*F54) ->  | G55: =SUM(D55:F55) -> 109.5
B56: Jahresbruttoeinkommen | D56: =IF(D8="","",D8) -> 55908 | E56: =IF(E8="","",E8) ->  | F56: =IF(F8="","",F8) -> 
B57: Fluktuationskosten in % vom Jahresbruttoeinkommen | D57: 1.2 | E57: 1.2 | F57: 1.2
B58: Fluktuationskosten in Euro | D58: =IF(OR(D56="", D57=""),"",D56*D57) -> 67089.6 | E58: =IF(OR(E56="",E57=""),"",E56*E57) ->  | F58: =IF(OR(F56="",F57=""),"",F56*F57) -> 
B59: Jährliche Fluktuationskosten | D59: =IF(OR(D55="",D58=""),"",D55*D58) -> 7346311.2 | E59: =IF(OR(E55="",E58=""),"",E55*E58) ->  | F59: =IF(OR(F55="",F58=""),"",F55*F58) ->  | G59: =SUM(D59:F59) -> 7346311.2
B60: Mögliche Ersparnis
B61: Annahme/Zielwert: Senkung der Fluktuation in % | D61: ='Return on Invest'!D43 -> 0.007 | E61: ='Return on Invest'!E43 ->  | F61: ='Return on Invest'!F43 -> 
B62: Absenkung auf eine Fluktuationsquote in % | D62: =IF(OR(D54="",D61=""),"",D54-D61) -> 0.212 | E62: =IF(OR(E54="",E61=""),"",E54-E61) ->  | F62: =IF(OR(F54="",F61=""),"",F54-F61) -> 
B63: Auswirkung der Fluktuationsquote in Anzahl Mitarbeitende | D63: =IF(OR(D7="",D61=""),"",D7*D62) -> 106 | E63: =IF(OR(E7="",E61=""),"",E7*E62) ->  | F63: =IF(OR(F7="",F61=""),"",F7*F62) ->  | G63: =SUM(D63:F63) -> 106
B64: Jährliche Ersparnis durch Senkung von Fluktuationskosten | D64: =IF(OR(D58="",D63=""),"",D59-(D63*D58)) -> 234813.6 | E64: =IF(OR(E58="",E63=""),"",E59-(E63*E58)) ->  | F64: =IF(OR(F58="",F63=""),"",F59-(F63*F58)) ->  | G64: =SUM(D64:F64) -> 234813.6
B66: Jährliche Gesamtersparnis durch Senkung der Absentismus-, Präsentismus- und Fluktuationskosten | D66: =IF(OR(D40="",D51="",D64=""),"",D40+D51+D64) -> 559150.68 | E66: =IF(OR(E40="",E51="",E64=""),"",E40+E51+E64) ->  | F66: =IF(OR(F40="",F51="",F64=""),"",F40+F51+F64) ->  | G66: =SUM(D66:F66) -> 559150.68
B67: Jährliche Gesamtbelastung durch den Gesundheitsplans (inkl. Beitragsbefreiung) | D67: =IF(D27="","",D27*-1) -> -250440 | E67: =IF(E27="","",E27*-1) ->  | F67: =IF(F27="","",F27*-1) ->  | G67: =SUM(D67:F67) -> -250440
B68: Ökonomisches Ergebnis | D68: =IF(OR(D66="",D67=""),"",D66+D67) -> 308710.68 | E68: =IF(OR(E66="",E67=""),"",E66+E67) ->  | F68: =IF(OR(F66="",F67=""),"",F66+F67) ->  | G68: =SUM(D68:F68) -> 308710.68

Sheet Absentismus
B3: Absentismus
C5: Absentismus ist das krankheitsbedinge Fernbleiben von der Arbeit. Gemessen werden Absentismuskosten durch die Zählung von Arbeitsunfähigkeitstagen, dem Produktionsaufall (Lohnkosten) sowie dem Bruttowertschöpfungsausfall (Arbeitsproduktivität).
B6: • | C6: Die durchschnittlichen Arbeitsunfähigkeitstage je Branche variieren stark. Den höchsten Ausfall verzeichnet das Cluster "Öffentliche und sonstige Dienstleister, Erziehung, Gesundheit" (s. BAUA, 2024)
C7: =IF(C8="","","Für die ausgewählte Branche ergeben sich folgende durchschnittliche AU-Tage je Mitarbeitenden:") -> Für die ausgewählte Branche ergeben sich folgende durchschnittliche AU-Tage je Mitarbeitenden:
C8: =IF('Return on Invest'!D4="","",'Return on Invest'!D4) -> Gesundheitswesen | D8: ='Return on Invest'!D29& "" &" Tage" -> 26,3 Tage
B9: • | C9: Die Bundesanstalt für Arbeitsschutz und Arbeitsmedizin hat für das Jahr 2024 den durchschnittlichen Produktionsaufall je Arbeitsunfähigkeitstag in Höhe von 152 € je fehlenden Mitarbeitenden gerechnet. Zusätzlich wird der Verlust der Arbeitsproduktivität je AU-Tag und Mitarbeitenden durchschnittlich mit 258 € beziffert. Beide Werte addiert (410 €) ergeben die Kosten eines Ausfalltags je Mitarbeitenden.
C12: Schlüsselwerte zum Absentismus | D12: Wirkung der bKV
B13: • | C13: Jede vierte Krankmeldung (19,9 %) geht auf Erkrankungen der Atemwege zurück (s. BAUA, 2024). Darunter werden unter anderem Husten, Schnupfen und Bronchialinfekte verstanden. | D13: Unser KI-basierter Symptomchecker kann auswerten, ob es sich um einen leichten Infekt oder eine ernste Erkrankung handelt, die ärztlich abgesichert werden muss. Über die integrierte Arztsuche kann nach Entfernung, Sprachkompetenzen u.ä. gefiltert werden. So wird der/die beste Ärzt*in gefunden. Zudem wird die gesetzlichen Zuzahlungen für Medikamente übernommen.
B14: • | C14: Mit 19,3 % sind Erkrankungen des Muskelskelett-Systems (v.a. Rückenschmerzen) die zweithäufigste Ursache für eine Krankmeldung (s. BAUA, 2024). | D14: Ob klassische Physiotherapie auf Bundesbeihilfeniveau oder Osteopathie, Chiropraktik sowie Naturheilverfahren durch Ärzt*innen - die bKV bietet eine schnellere Versorgung und fördert die Heilung, sodass Mitarbeitende schneller wieder einsatzbereit sind.
B15: • | C15: Besonders kritisch ist der Ausfall von Mitarbeitenden, die eine Schlüsselkompetenz besitzen und bei Ausfall nicht bzw. kaum verteten werden können (Fachkräftemangel). Für Unternehmen wird es immer schwieriger, offene Stellen zu besetzen. Während die Zahl der offenen Stellen in den letzten 10 Jahren gestiegen ist, sinkt die Zahl der Arbeitsuchenden (s. Bundesagentur für Arbeit). | D15: Die bKV kann in Stellenausschreibungen genannt werden und ist ein Instrument, neue Mitarbeitende zu finden. Unternehmen grenzen sich positiv vom Wettbewerb ab und steigern ihre Arbeitgeberattraktivität (sog. Employer Branding). Engpässe bei Ausfall eines Mitarbeitenden können so abgefedert werden.

Sheet Präsentismus
B3: Präsentismus
C5: Präsentismus beschreibt das Arbeiten trotz einer Erkrankung - entweder von Zuhause oder vor Ort. Präsentismus kann vom Arbeiten mit leichten Symptomen bis hin zur Tätigkeit trotz schwerwiegender Beschwerden reichen. Dies kann zu einer eingeschränkten Leistungsfähigkeit, Fehlern und Unfällen führen.
B6: • | C6: Präsentsimus ist schwer zu beziffern. Entgegen des Absentismus, wofür Arbeitsunfähigkeitstage zur Messung verwendet werden, gibt es beim Präsentismus kein einheitliches Bewertungsschema. Die Studienlage geht folglich weit auseinander.
B7: • | C7: Laut einer aktuellen Auswertung der Bundesanstalt für Arbeitsschutz und Arbeitsmedizin (BAuA) gaben 54 % der Beschäftigten an, im Jahr 2024 mindestens einmal krank zur Arbeit gegangen zu sein, wobei insbesondere Frauen mit etwa 60 % häufiger Präsentismus zeigten als Männer mit rund 48 %.
B8: • | C8: Die Leistung der Mitarbeitenden, die trotz Erkrankung arbeiten, ist durchschnittlich um 20 % gemindert (sog. Produktivitäts-minderung, vgl. Bödeker und Hüsing, 2008).
C10: Schlüsselwerte zum Präsentismus | D10: Wirkung der bKV
B11: • | C11: Liegt eine offizielle Krankschreibung vor, wird Präsentismus deutlich gesenkt. Nur noch 11,5 % der Befragten gehen in diesem Fall krank zur Arbeit (Techniker Krankenkasse, 2022). | D11: Mittels Symptomchecker kann abgeklärt werden, ob die Kunsultation von Ärzt*innen geboten ist. Durch unser Angebot der Telemedizin können Mitarbeitende online ein ärztliches Gespräch führen und erhalten Krankschreibungen sowie ggfs. Rezepte.
B12: • | C12: 30 % der gesetzlich Versicherten mussten mehr als 4 Wochen auf einen Facharzttermin warten ( Spitzenverband der Gesetzlichen Krankenversicherung (GKV 2026)). | D12: Deutliche Reduktion dank Facharztterminservice. Versicherte vermeiden lange Suchen und aufwändige Terminkoordination.
B13: • | C13: Während 34,8 % der Befragten trotz einer körperlichen Verletzung arbeiten, kommen hingegen 56,8 % der Befragten trotz emotionaler Erschöpfung ihrer Tätigkeit nach (Techniker Krankenkasse, 2022). | D13: Durch die bKV können Mitarbeitende eine telefonische Beratung zur Erschöpfungsprävention nutzen. Hier helfen Experten, der Erschöpfungsfalle zu entkommen und wieder Kraft zu tanken.
B14: • | C14: 70% der Befragten, die Angehörige pflegen, fühlen sich stark emotional belastet, knapp die Hälfte fühlt sich körperlich überfordert und weist körperliche Leiden auf (sog. Proxy-Präsentismus, wobei Mitarbeitende nicht selbst von der eigentlichen Krankheit betroffen sind, s. Ärzteblatt 2019). | D14: Bei Aufkommen einer Pflegesituation helfen Pflegeprofis bei der Beratung und Organisation (bspw. Vermittlung von Pflegediensten). Durch die bKV wird ein 24h Pflegetelefon zur Verfügung gestellt. Außerdem spricht der Kooperationspartner eine Pflegeheimplatzgarantie aus. Mitarbeitende werden folglich starkt entlastet.

Sheet Fluktuation
B3: Fluktuation
C5: Mitarbeiterfluktuation beschreibt die Abgänge von Angestellten und wird auch als Personalfluktuation bezeichnet. Sie leitet in Unternehmen einen Prozess ein, der von der Kündigungsphase bis zur Rekrutierung und Einstellung neuer Mitarbeitenden andauert. Unter dem Begriff werden sämtliche Auflösungen von Arbeitsverhältnissen zusammengefasst, für gewöhnlich sind damit jedoch arbeitnehmerseitige Kündigungen gemeint.
B6: • | C6: Der Verlust von Mitarbeitern ist immer mit Fluktuationskosten verbunden. In welchem Rahmen sich diese bewegen, hängt in erster Linie von der erforderlichen Qualifikation der Mitarbeitenden ab. Die Kosten für Rekrutierung, Einarbeitung und Know-How Verlust stehen im direkten Zusammenhang mit dem Anforderungsprofil. Treten Mitarbeitende aus dem Unternehmen aus, verursacht dies Kosten von ungefähr 120 % des jeweiligen Jahresbruttogehalts: - 30 % entfallen auf die Minderleistung des Mitarbeitenden nach Entscheidung für den Austritt - 30 % Anwerbungskosten (bspw. Kosten für Stellenausschreibungen) - 10 % Auswahl und Einstellungskosten (auch Erstattung von Bewerbungskosten) - 50 % Einarbeitungskosten im ersten Jahr (vgl. https://www.personio.de/hr-lexikon/fluktuationsrate-berechnen/, Stand 04.2024).
B7: • | C7: Die Fluktuationsrate beschreibt, wie häufig ein Mitarbeitendenwechsel stattfindet. Diese Rate ist branchenabhängig. Das Branchencluster "Gastgewerbe" weist die höchste Fluktuationsrate auf.
C8: =IF(C9="","","Für die ausgewählte Branche ergeben sich folgende AU-Tage je Mitarbeitenden:") -> Für die ausgewählte Branche ergeben sich folgende AU-Tage je Mitarbeitenden:
C9: =IF('Return on Invest'!D4="","",'Return on Invest'!D4) -> Gesundheitswesen | D9: =IF('Return on Invest'!D4="","",'Return on Invest'!D41) -> 0.219
C11: Schlüsselwerte zur Fluktuation | D11: Wirkung der bKV
B12: • | C12: 53 % der befragten kleinen und mittelständischen Unternehmen geben an, Schwierigkeiten zu haben, Personal zu gewinnen und zu binden. Im Vergleich zum Vorjahr stiegen diese Werte je nach Unternehmensgröße um bis zu 17%. Während 2022 noch 18% der befragten KMU keine Maßnhamen ergriffen, ihre Arbeitgeberattraktivität zu steigern, waren es 2023 nur noch 6% der Unternehmen (Gothaer KMU-Studie, 2023). | D12: Ein smarter Gesundheitsplan deckt sowohl Kosten- als auch Krankheitsrisiken ab. Mitarbeitende, die aufgrund ihres Alters, ihrer Vorerkrankungen oder der finanziellen Situation eine entsprechende Versicherung im Einzelgeschäft nicht abschließen können, erhalten mit der bKV einen sofortigen Schutz. Das bindet Mitarbeitende an das Unternehmen und macht die soziale Fürsorge des Unternehmens spürbar.
B13: • | C13: Laut einer vom PKV-Verband in Auftrag gegebenen Studie aus 2026 sagen 55% der Mitarbeitenden, dass die bKV für sie wertvoller als andere Zusatzleistungen wie etwa Nahverkehrtstickets oder Diensthandys sind (18,4% unentschieden, 26,6% nein) https://www.pkv.de/verband/presse/pressemitteilungen/eigenanteile-in-der-pflege-grosse-mehrheit-wuenscht-sich-betriebliche-vorsorge/#c8921 | D13: Die Gesundheitsbudgets können effektiver wirken als eine klassische Gehaltserhöhung. Das Budget kommt 1:1 bei den Mitarbeitenden an und kann flexibel eingesetzt werden.
B14: • | C14: 2023 verfügen dennoch nur 14 % der befragten Unternehmen über eine betriebliche Krankenversicherung (Gothaer KMU-Studie, 2023). | D14: Die bKV kann schon ab 5 Mitarbeitenden angeboten werden. Es gibt keine Wartezeiten, d.h. der Schutz greift sofort.

Sheet Branchenzahlen
B3: Branche | C3: Durchschnittliches Arbeitsentgelt pro Monat | D3: Durchschnittliches Jahrebruttoeinkommen | E3: Krankentage | F3: Flutktuationsrate
B4: Produzierendes Gewerbe (inkl. Baugewerbe) | C4: 4596 | D4: =C4*12 -> 55152 | E4: 24.8 | F4: 0.184
B5: Erziehung und Unterricht | C5: 5274 | D5: 63288 | E5: 26.3 | F5: 0.2577
B6: Gastgewerbe | C6: 3042 | D6: 36504 | E6: 24.8 | F6: 0.6065
B7: Gesundheitswesen | C7: 4659 | D7: 55908 | E7: 26.3 | F7: 0.219
B8: Handel, Instandhaltung und Reparatur (inkl. KFZ) | C8: 4252 | D8: 51024 | E8: 29.9 | F8: 0.3154
B9: Immobilien | C9: 4531 | D9: 54372 | E9: 19.9 | F9: 0.255
B10: Information und Kommunikation | C10: 5955 | D10: 71460 | E10: 14.3 | F10: 0.487
B11: Öffentliche Verwaltung | C11: 4791 | D11: 57492 | E11: 26.3 | F11: 0.123
B12: Verkehr | C12: 3784 | D12: 45408 | E12: 23.9 | F12: 0.343
B13: Finanz- und Versicherungsdienstleister | C13: 6182 | D13: 74184 | E13: 19.9 | F13: 0.161
C14: Quelle: Statista, Stand 2024 | E14: Quelle: BauA, Stand 2024 | F14: Quelle: Statista, Stand 2024
D17: ohne Beitragsbefreiung
B18: MediGroupAG Z Basis | C18: 9.05
B19: MediGroupAG Z | C19: 13.4
B20: MediGroupAG Z Premium | C20: 18.06
B21: WellDent 500 | C21: 13.9 | D21: 13.2
B22: WellDent 1.000 | C22: 24.1 | D22: 23
B23: WellDent 1.500 | C23: 31 | D23: 29.6
B24: WellDent 2.500 | C24: 41.5 | D24: 39.6
B25: WellDent 5.000 | C25: 61 | D25: 58.1
B27: MediGroupAG S U | C27: 4.23
B28: MediGroupAG S 2 | C28: 20.84
B29: MediGroupAG S 1 | C29: 25.45
B30: GetWell Comfort | C30: 21.15 | D30: 19.95
B31: GetWell Premium | C31: 26.44 | D31: 24.95
B33: MediGroupAG V | C33: 5.1
B34: MediGroupAG V Premium | C34: 12.26
B35: CareWell | C35: 8.1 | D35: 7.7
B36: CareWell Exclusive | C36: 44.4 | D36: 42.2
B38: MediGroupAG ZB Basis | C38: 5.77
B39: MediGroupAG ZB | C39: 9.98
B41: MediGroupAG A | C41: 15.96
B43: TravelWell | C43: 2.5 | D43: 2.3
B44: GetWell Daily | C44: 0,82 je 1€ KTG | D44: 0,78 je 1€ KTG
